bitfinex/quotes_ETHUSD_20240827
["timestamp","ask_amount","ask_price","bid_price","bid_amount"]
[1724767270738,0.09563509,2614.2,2613.6,0.27425596]
[1724767271535,0.09563509,2614.2,2613.5,2.2881]
[1724767271536,5.2648176,2614.0,2613.5,2.2881]
[1724767271763,0.55,2614.7,2613.5,2.2881]
[1724767271764,5.2648176,2614.3,2613.5,2.2881]
[1724767271969,5.2648176,2614.3,2613.6,0.30532397]
[1724767272139,0.09564201,2614.5,2613.6,0.30532397]
[1724767272646,5.2648176,2614.3,2613.6,0.22881]
[1724767272984,5.2648176,2614.0,2613.2,2.2867]
[1724767273286,0.09565108,2613.9,2613.2,2.2867]
[1724767273646,5.2648176,2613.3,2612.8,0.39975724]
[1724767273958,2.4989,2613.8,2612.8,0.39975724]
[1724767273959,0.0956737,2613.7,2612.9,0.07653896]
[1724767274181,3.0,2614.4,2613.0,2.3872]
[1724767274182,5.2648176,2614.2,2613.0,2.3872]
[1724767274341,2.4989,2614.5,2613.2,2.3872]
[1724767274342,0.09563782,2614.3,2613.2,2.3872]
[1724767274539,0.09563782,2614.3,2613.3,0.07651025]
[1724767274854,0.09563782,2614.4,2613.4,2.3518]
[1724767275068,0.09563782,2614.4,2613.5,0.07651028]
[1724767275272,5.2648176,2614.2,2613.4,2.3518]
[1724767275490,0.09563782,2614.4,2613.4,2.3518]
[1724767275491,0.09565217,2614.4,2613.5,0.07652173]
[1724767275709,0.0956353,2614.4,2613.5,0.07652173]
[1724767276310,5.36045292,2614.5,2613.5,0.07652173]
[1724767276512,5.36045292,2614.5,2613.5,0.3193539]
[1724767276776,5.36045292,2614.5,2613.5,3.3193539]
[1724767277217,5.2648176,2614.2,2613.4,2.3518]
[1724767277390,5.2648176,2614.2,2612.8,0.67452675]
[1724767277391,5.2648176,2613.9,2612.9,2.353]
[1724767277729,5.2648176,2613.6,2613.0,0.26442268]
[1724767278021,0.09566911,2613.5,2612.6,2.4783103]
[1724767278523,5.2648176,2613.0,2612.6,0.1253103]
[1724767278689,0.09569291,2612.9,2612.6,0.1253103]
[1724767279420,0.55,2613.4,2612.6,0.1253103]
[1724767279421,0.09569283,2613.1,2612.6,0.1253103]
[1724767280018,5.2648176,2613.0,2612.6,0.1253103]
[1724767280178,0.09568944,2612.9,2612.6,0.1253103]
[1724767280378,0.09569116,2613.2,2612.6,0.1253103]
[1724767281710,0.09568166,2613.4,2612.6,0.1253103]
[1724767282025,5.43492083,2613.3,2612.6,0.1253103]
[1724767282176,0.09568166,2613.2,2612.6,0.1253103]
[1724767283188,0.09568169,2613.4,2612.6,0.1253103]
[1724767284481,5.98492083,2613.3,2612.6,0.1253103]
[1724767284680,0.09568719,2613.2,2612.6,0.1253103]
[1724767285331,5.43492083,2612.9,2612.6,0.1253103]
[1724767285483,0.09569119,2612.8,2612.6,0.1253103]
[1724767286180,5.43492083,2613.3,2612.6,0.1253103]
[1724767286480,0.09568317,2613.2,2612.6,0.1253103]
[1724767287127,5.43492083,2612.9,2612.6,0.1253103]
[1724767287295,0.09569549,2612.8,2612.6,0.1253103]
[1724767289345,10.4767,2612.7,2612.6,0.1253103]
[1724767289484,2.8218,2612.7,2612.6,0.1253103]
[1724767289687,9.74496574,2612.7,2612.6,0.1253103]
[1724767289883,5.91751574,2612.7,2612.6,0.1253103]
[1724767290387,5.92391574,2612.7,2612.6,0.1253103]
[1724767290652,9.75136574,2612.7,2612.6,0.1253103]
[1724767291203,5.92391574,2612.7,2612.6,0.1253103]
[1724767291421,5.37391574,2612.7,2612.6,0.1253103]
[1724767291633,2.37391574,2612.7,2612.6,0.1253103]
[1724767293410,3.82694,2613.1,2612.6,0.1253103]
[1724767293411,2.2693,2613.1,2612.6,0.1253103]
[1724767293614,5.43492083,2613.3,2612.6,0.1253103]
[1724767293615,0.09569072,2613.0,2612.6,0.1253103]
[1724767293923,0.09568438,2613.2,2612.6,2.5636103]
[1724767294081,0.09568167,2613.6,2612.7,0.33290636]
[1724767294282,0.09568167,2613.6,2612.8,0.07653359]
[1724767295498,0.09568167,2613.6,2612.9,2.4856]
[1724767295695,0.0956567,2614.0,2613.1,2.4856]
[1724767296038,5.43492083,2614.5,2613.2,0.07651841]
[1724767296182,5.43492083,2614.5,2613.3,2.49010928]
[1724767296183,0.0956366,2614.4,2613.3,2.49010928]
[1724767296506,0.0956366,2614.4,2613.4,2.4136]
[1724767296678,0.0956366,2614.4,2613.6,2.4136]
[1724767296879,0.0956366,2614.4,2613.7,0.32552028]
[1724767297079,0.0956366,2614.4,2613.8,0.07650935]
[1724767297328,0.0956366,2614.4,2613.8,0.07650928]
[1724767297507,5.43492083,2614.5,2613.8,0.07650928]
[1724767297691,0.0956366,2614.8,2613.9,2.386]
[1724767297692,0.0956228,2614.8,2613.9,2.386]
[1724767298018,0.0956228,2614.8,2614.0,0.32275033]
[1724767300148,5.5305425,2614.9,2614.0,0.32275033]
[1724767300435,5.43492083,2614.9,2614.0,0.32275033]
[1724767300739,0.09562244,2615.1,2614.0,0.32275033]
[1724767300921,0.09562244,2615.1,2614.1,2.3412]
[1724767301107,0.09562244,2615.1,2614.2,0.07649122]
[1724767301309,5.43492083,2614.9,2614.1,2.3412]
[1724767301541,0.09562319,2614.8,2614.1,2.3412]
[1724767301844,0.09562319,2614.8,2614.2,0.31061855]
[1724767302138,5.26851665,2614.7,2614.2,0.23412]
[1724767302344,0.09562314,2614.6,2614.2,0.23412]
[1724767302500,5.26851665,2614.4,2614.1,2.3412]
[1724767302694,5.26851665,2614.4,2613.8,2.3584]
[1724767302934,0.09562613,2614.3,2613.8,2.3584]
[1724767303321,5.26851665,2614.4,2613.8,2.3584]
[1724767303723,0.09563431,2614.7,2613.8,2.3584]
[1724767303724,5.26851665,2614.1,2613.8,2.3584]
[1724767304326,5.26851665,2614.1,2613.8,0.23584]
[1724767304542,5.26851665,2614.1,2613.6,3.0]
[1724767304858,2.4667,2614.7,2613.5,2.3869]
[1724767304859,5.26851665,2613.8,2613.5,2.3869]
[1724767305298,5.26851665,2613.8,2612.7,0.3833]
[1724767305299,5.26851665,2613.8,2613.2,2.4977]
[1724767305494,5.26851665,2613.5,2613.3,0.24977]
[1724767305698,5.26851665,2613.5,2612.9,2.3227]
[1724767305938,5.26851665,2613.8,2612.9,2.3227]
[1724767306104,5.26851665,2613.8,2613.0,0.30879506]
[1724767307122,5.26851665,2613.8,2613.1,2.4193]
[1724767307346,5.26851665,2613.8,2613.2,0.0765252]
[1724767308125,5.26851665,2613.5,2613.1,2.4193]
[1724767308435,5.26851665,2613.5,2612.7,3.0]
[1724767308436,0.09567228,2613.4,2612.8,2.4193]
[1724767308742,0.09567228,2613.4,2612.8,2.73183103]
[1724767308947,5.26851665,2613.2,2612.8,0.31253103]
[1724767309116,0.09567935,2613.1,2612.6,2.4513103]
[1724767309918,5.26851665,2612.9,2612.6,2.4513103]
[1724767310115,5.26851665,2612.9,2612.7,0.24513103]
[1724767310515,5.26851665,2613.2,2612.7,0.24513103]
[1724767310746,5.26851665,2613.5,2612.7,0.24513103]
[1724767311098,5.36417638,2613.8,2612.8,2.43932778]
[1724767311338,5.26851665,2613.5,2612.9,0.26844588]
[1724767311545,5.26851665,2613.5,2613.0,0.07652853]
[1724767311710,5.26851665,2613.8,2613.0,0.07652853]
[1724767312327,5.36417557,2614.1,2613.1,2.437]
[1724767312539,5.26851665,2614.1,2613.3,2.3295]
[1724767312867,5.26851665,2614.1,2613.4,0.07651243]
[1724767315608,5.26851665,2613.8,2613.4,0.07651869]
[1724767315811,5.26851665,2613.8,2613.4,0.31712056]
[1724767316032,5.26851665,2613.8,2613.4,3.31712056]
[1724767316850,5.26851665,2614.1,2613.4,3.31712056]
[1724767317052,5.26851665,2614.1,2613.5,0.56466206]
[1724767317271,5.26851665,2614.1,2613.6,0.07651738]
[1724767317472,5.26851665,2614.1,2613.5,0.64117704]
[1724767317821,5.26851665,2614.4,2613.6,2.3945]
[1724767318028,5.26851665,2614.4,2613.7,0.38007531]
[1724767318342,5.26851665,2614.4,2613.8,0.07650468]
[1724767318738,0.09563096,2614.3,2613.7,0.38007246]
[1724767319442,0.09563096,2614.3,2613.6,2.3945]
[1724767319443,5.26851665,2614.1,2613.6,2.3945]
[1724767319759,5.26851665,2614.4,2613.6,2.3945]
[1724767320070,5.26851665,2614.7,2613.7,0.0765071]
[1724767320277,0.09562202,2614.9,2613.8,2.52259762]
[1724767320781,5.26851665,2614.7,2613.8,2.4461]
[1724767320992,0.09563056,2614.6,2613.8,2.4461]
[1724767321147,0.09563056,2614.6,2613.9,0.24461]
[1724767321763,5.26851665,2614.4,2613.9,0.24461]
[1724767321964,5.26851665,2614.4,2613.8,2.4461]
[1724767321965,0.09563057,2614.3,2613.8,2.4461]
[1724767322165,5.26851665,2614.4,2613.8,2.4461]
[1724767322469,0.09564046,2614.6,2613.9,0.07651237]
[1724767322787,0.09564046,2614.6,2613.9,0.62877361]
[1724767323885,5.26851665,2614.4,2613.8,5.4461]
[1724767324088,5.26851665,2614.1,2612.9,2.3001]
[1724767324254,5.26851665,2613.8,2613.0,0.30965636]
[1724767324445,0.09565302,2613.7,2613.0,0.30965636]
[1724767324648,5.26851665,2613.2,2612.9,2.3001]
[1724767326142,5.26851665,2613.5,2613.0,0.07654093]
[1724767327160,5.36417961,2614.1,2613.0,0.07653039]
[1724767327370,5.36417961,2614.1,2613.1,2.3391]
[1724767327570,5.36417961,2614.1,2613.3,2.3391]
[1724767327793,5.26851665,2613.8,2613.3,2.41562133]
[1724767327957,5.26851665,2613.8,2613.4,0.24156213]
[1724767328166,5.36417117,2614.1,2613.4,0.24156213]
[1724767328783,5.26851665,2613.8,2613.4,0.24156213]
[1724767329512,5.26851665,2613.5,2613.0,2.61226304]
[1724767329648,5.26851665,2613.5,2613.0,2.3664]
[1724767330401,7.01779449,2618.4,2612.6,0.1253103]
[1724767330402,0.09565709,2613.8,2613.2,2.3664]
[1724767330545,0.09564438,2614.2,2613.3,0.07651548]
[1724767330743,5.36416103,2614.2,2613.3,0.32080703]
[1724767331460,0.09564111,2614.5,2613.4,2.4755]
[1724767331666,0.09562689,2615.0,2613.6,2.4146]
[1724767331862,0.09562689,2615.0,2613.8,2.4146]
[1724767332514,0.09562689,2615.0,2613.8,2.47976]
[1724767333041,0.09562689,2615.0,2614.0,2.4146]
[1724767333346,0.09562689,2615.0,2614.1,0.31795243]
[1724767333506,5.26851665,2615.4,2614.2,2.4146]
[1724767333706,3.82313,2615.7,2614.4,2.4146]
[1724767333707,5.26851665,2615.7,2614.4,2.4146]
[1724767333945,0.09559119,2615.8,2614.6,2.4146]
[1724767334148,0.09559119,2615.8,2614.5,0.31793295]
[1724767334149,0.09559119,2615.8,2614.8,2.4146]
[1724767334462,0.09558041,2616.2,2615.0,2.3546]
[1724767334742,5.26851665,2616.6,2615.2,2.3546]
[1724767334950,5.26851665,2616.6,2615.4,2.3546]
[1724767334951,0.09556031,2616.5,2615.4,2.3546]
[1724767335107,6.26562,2617.8,2615.7,2.3546]
[1724767335308,6.26562,2617.8,2615.9,2.3546]
[1724767335309,5.26851665,2617.5,2615.9,2.3546]
[1724767335623,0.0955347,2617.4,2616.1,2.4827]
[1724767335843,5.26851665,2616.8,2616.2,0.25591278]
[1724767336047,9.23896495,2617.3,2616.1,5.4827]
[1724767336354,9.23896495,2617.3,2616.1,2.4827]
[1724767336355,6.17296568,2617.2,2616.1,2.4827]
[1724767336559,5.41821495,2616.9,2616.1,2.4827]
[1724767336714,0.09554641,2616.8,2616.2,0.07644247]
[1724767337059,3.91665642,2617.1,2616.1,2.4827]
[1724767337216,0.09554642,2617.1,2616.2,0.07644094]
[1724767338024,0.09553405,2617.3,2616.4,2.4635]
[1724767338243,0.09552777,2617.6,2616.5,0.07642221]
[1724767338451,5.41821495,2618.1,2616.6,2.4401]
[1724767338452,0.09551824,2617.8,2616.6,2.4401]
[1724767338760,5.41821495,2618.1,2616.8,2.4401]
[1724767338761,0.09551253,2618.0,2616.8,2.4401]
[1724767339067,0.09551253,2618.0,2616.9,0.251651]
[1724767339554,0.09551253,2618.0,2616.9,3.251651]
[1724767339757,0.09551253,2618.0,2617.0,0.07641142]
[1724767340116,0.09551253,2618.0,2616.9,3.251651]
[1724767340321,5.41821495,2617.7,2616.8,2.4401]
[1724767340521,5.41821495,2617.7,2616.2,0.31622379]
[1724767340522,3.82044,2617.5,2616.3,2.3844]
[1724767340828,0.09553331,2617.4,2616.3,2.3844]
[1724767341027,5.41821495,2617.3,2616.3,2.3844]
[1724767341285,5.41821495,2616.9,2616.3,2.3844]
[1724767341483,5.41821495,2616.9,2615.1,1.19469538]
[1724767341484,0.09555936,2616.8,2615.7,2.358]
[1724767341928,0.09555936,2616.8,2615.8,0.07644832]
[1724767342462,0.09555175,2617.0,2615.8,0.07644832]
[1724767342633,0.09555175,2617.0,2615.8,0.24344483]
[1724767342833,5.41821495,2616.9,2615.8,3.24344483]
[1724767343068,0.09555239,2616.8,2615.9,3.0]
[1724767343219,0.09555239,2616.8,2616.0,0.32434448]
[1724767343767,0.09555239,2616.8,2615.8,3.24344483]
[1724767344569,0.09555889,2616.7,2615.8,0.24344483]
[1724767344745,0.09555889,2616.7,2615.9,0.07644711]
[1724767345318,0.09555889,2616.7,2615.8,0.24344483]
[1724767345657,0.0955539,2616.8,2615.8,0.24344483]
[1724767347017,9.23955495,2616.9,2615.7,2.358]
[1724767347018,6.35575341,2616.7,2615.7,2.358]
[1724767347237,6.35575341,2616.7,2615.6,0.07645685]
[1724767347238,5.41821495,2616.5,2615.6,0.07645685]
[1724767347441,0.09556454,2616.4,2615.6,0.07645685]
[1724767347745,0.09556079,2616.6,2615.7,2.3021]
[1724767347969,0.09556079,2616.6,2615.8,0.31430148]
[1724767348170,0.09555725,2616.8,2615.8,0.23785568]
[1724767349492,0.09555111,2616.7,2615.8,0.07644089]
[1724767349984,7.6436,2616.6,2615.7,2.3021]
[1724767350284,8.41821495,2616.9,2615.3,2.4221]
[1724767350285,3.82219,2616.3,2615.3,2.4221]
[1724767350580,0.0955745,2616.2,2615.3,2.4221]
[1724767350787,0.0955745,2616.2,2615.3,2.69431]
[1724767351381,0.0955745,2616.3,2615.3,2.69431]
[1724767351726,3.9177745,2616.3,2615.3,0.27221]
[1724767352011,3.9177745,2616.3,2615.1,0.3]
[1724767352012,0.09557528,2616.2,2615.1,3.3]
[1724767352169,0.09557528,2616.2,2615.2,1.06]
[1724767353012,5.51379005,2616.1,2615.2,1.06]
[1724767353322,5.51379005,2616.1,2615.2,0.07647162]
[1724767353501,5.51379005,2616.1,2615.1,0.07646534]
[1724767354370,5.51379005,2616.1,2615.0,7.3]
[1724767354617,5.51379005,2616.1,2615.1,1.03774578]
[1724767354978,0.0955751,2616.1,2615.1,1.03774578]
[1724767355203,0.09558208,2616.3,2615.1,4.03774578]
[1724767355785,0.09558208,2616.3,2615.1,3.96128]
[1724767356112,0.09558208,2616.3,2615.3,2.2824]
[1724767356298,0.09558208,2616.3,2615.4,0.31234589]
[1724767356503,3.91779208,2616.3,2615.4,0.23588625]
[1724767356825,0.09557456,2616.2,2615.4,0.23588625]
[1724767357119,9.24069495,2616.1,2615.1,3.96128]
[1724767357320,0.09558336,2616.0,2615.1,4.03774669]
[1724767357819,0.09558336,2616.0,2615.1,3.96128]
[1724767358121,5.26518262,2615.6,2614.9,2.2864]
[1724767358418,0.09559619,2615.5,2614.6,2.2864]
[1724767358647,0.09559619,2615.5,2614.7,0.95864]
[1724767358782,0.09559619,2615.5,2614.3,2.2864]
[1724767358783,5.26518262,2615.0,2614.3,2.2864]
[1724767358981,5.26518262,2615.3,2614.3,2.2864]
[1724767359214,0.09560864,2615.2,2614.4,0.22864]
[1724767359415,0.09560864,2615.2,2614.4,0.30512691]
[1724767359980,5.36078927,2615.6,2614.4,3.30512691]
[1724767360183,5.36078927,2615.6,2614.5,0.55915269]
[1724767360481,0.09559406,2615.6,2614.7,2.3313]
[1724767360677,0.09559406,2615.6,2614.8,0.0764732]
[1724767360931,0.09559406,2615.6,2614.8,0.61725052]
[1724767361224,5.36077668,2615.6,2614.8,3.54077732]
[1724767361382,5.36077668,2615.6,2614.8,3.61725495]
[1724767361924,0.09559675,2615.8,2614.8,3.61725495]
[1724767362108,0.09559675,2615.8,2614.9,0.5948555]
[1724767362109,5.26518262,2615.6,2614.9,0.5948555]
[1724767362422,5.26518262,2615.6,2615.0,0.07647326]
[1724767362579,0.09559157,2615.5,2614.7,2.3313]
[1724767362779,0.09559157,2615.5,2614.8,0.07648207]
[1724767363023,5.26518262,2615.6,2614.8,0.07648207]
[1724767363579,0.09559639,2615.8,2614.8,3.07648207]
[1724767363891,2.3279,2616.2,2614.8,3.07648207]
[1724767363892,0.09558543,2616.1,2614.9,2.4825]
[1724767364090,5.26518262,2616.2,2615.1,2.4825]
[1724767364299,0.09557276,2616.4,2615.3,2.4825]
[1724767364592,0.0955617,2616.5,2615.5,2.4825]
[1724767364816,0.0955617,2616.5,2615.6,0.0764487]
[1724767365393,5.36074432,2616.5,2615.6,0.0764487]
[1724767365711,5.26518262,2616.5,2615.6,0.0764487]
[1724767365914,5.26518262,2616.5,2615.6,0.63234357]
[1724767368722,0.09556224,2616.7,2615.7,2.4182]
[1724767368882,0.09556224,2616.7,2615.8,0.07644274]
[1724767369088,0.09556224,2616.7,2615.8,0.6814965]
[1724767369289,5.26518262,2616.8,2615.8,0.6814965]
[1724767369499,0.09555215,2616.7,2615.8,0.6814965]
[1724767369901,5.26518262,2616.2,2615.7,5.4182]
[1724767370102,0.09556855,2616.1,2615.7,2.4182]
[1724767370427,0.09556855,2616.1,2614.7,2.61122194]
[1724767370428,0.09556855,2616.1,2615.2,2.4818]
[1724767370588,0.09556855,2616.1,2615.2,5.4818]
[1724767371915,5.26518262,2615.9,2615.2,2.4818]
[1724767372132,0.0955846,2615.8,2615.2,2.4818]
[1724767372424,0.0955846,2615.8,2615.3,0.97818]
[1724767372782,5.26518262,2615.9,2615.3,0.97818]
[1724767372992,0.09558467,2616.1,2615.4,0.07646774]
[1724767373202,0.09558467,2616.1,2615.2,2.4818]
[1724767373388,5.26518262,2615.9,2615.2,3.45998]
[1724767373591,0.09558285,2615.8,2615.2,3.45998]
[1724767374429,5.36076602,2616.2,2615.3,0.07646672]
[1724767374614,5.36076602,2616.2,2615.2,3.45998]
[1724767374814,5.36076602,2616.2,2615.3,1.075998]
[1724767375133,5.36076602,2616.2,2615.4,0.07645898]
[1724767375341,5.36076602,2616.2,2615.3,1.075998]
[1724767375495,5.26518262,2616.2,2615.4,0.07645898]
[1724767375813,5.26518262,2616.2,2615.4,0.43988468]
[1724767375814,0.09557082,2616.1,2615.4,0.43988468]
[1724767376015,5.26518262,2616.5,2615.4,0.43988468]
[1724767376215,3.09556346,2616.4,2615.5,2.3491]
[1724767376526,3.09556346,2616.4,2615.6,0.07645084]
[1724767376728,5.26518262,2616.2,2615.6,0.07645084]
[1724767377206,5.26518262,2616.2,2615.6,0.07646074]
[1724767377465,0.09557592,2616.3,2615.6,0.31901681]
[1724767377762,0.09557592,2616.3,2615.7,0.07645723]
[1724767377939,0.09557592,2616.3,2615.6,0.24255607]
[1724767378142,5.26518262,2616.2,2615.5,2.3491]
[1724767378340,0.09557895,2616.1,2615.5,2.3491]
[1724767378596,0.09557895,2616.1,2615.3,1.075998]
[1724767379286,0.09557895,2616.1,2615.4,0.07646115]
[1724767379612,0.09557895,2616.1,2615.4,0.42177707]
[1724767379942,3.0,2616.4,2615.4,0.42177707]
[1724767379943,0.09557274,2616.3,2615.4,0.42177707]
[1724767380483,9.08754262,2616.2,2615.4,0.34531592]
[1724767380780,9.08754262,2616.2,2615.2,2.3007]
[1724767380781,3.91807897,2616.1,2615.2,2.3007]
[1724767380995,0.09557897,2616.1,2615.2,2.3007]
[1724767382158,5.26518262,2615.9,2615.2,2.3007]
[1724767382492,0.09558408,2615.8,2615.2,3.26077]
[1724767383502,0.09558408,2615.8,2615.1,7.3]
[1724767383503,5.26518262,2615.6,2614.9,5.3231]
[1724767383678,0.09558998,2615.5,2614.9,2.3231]
[1724767386132,5.3607858,2615.6,2615.0,0.07648254]
[1724767386349,5.36077026,2615.9,2615.0,0.30879254]
[1724767386632,0.09557821,2616.0,2615.1,2.323]
[1724767386802,0.09557821,2616.0,2615.2,0.33964275]
[1724767386997,0.09557821,2616.0,2615.3,0.0764635]
[1724767387324,5.26518262,2615.6,2615.0,0.23231]
[1724767387520,0.09559402,2615.5,2615.0,0.23231]
[1724767388441,5.26518262,2615.6,2615.1,0.07647522]
[1724767388641,5.36076713,2615.9,2615.0,0.30877761]
[1724767388848,5.36076713,2615.9,2615.1,0.07646761]
[1724767390237,5.36076713,2615.9,2615.0,0.23231]
[1724767390412,5.36076713,2615.9,2615.0,7.53231]
[1724767390616,5.36076713,2615.9,2615.1,0.753231]
[1724767391502,0.09558463,2616.1,2615.2,2.3353677]
[1724767391743,0.09558463,2616.1,2615.2,4.33055108]
[1724767391937,0.09558463,2616.1,2615.3,0.50837821]
[1724767392109,0.09558463,2616.1,2615.4,0.07645825]
[1724767393003,5.26518262,2615.9,2615.3,0.50837821]
[1724767393204,5.26518262,2615.9,2615.3,0.58484378]
[1724767393544,5.26518262,2615.9,2615.4,0.28437438]
[1724767393701,0.09558084,2615.8,2615.4,0.28437438]
[1724767394108,5.26518262,2615.9,2615.4,0.28437438]
[1724767394333,5.36076461,2616.2,2615.4,0.28437438]
[1724767394641,5.36076461,2616.2,2615.5,0.07646429]
[1724767395245,9.20614,2616.6,2615.6,2.4478]
[1724767395246,0.09557283,2616.5,2615.6,2.4478]
[1724767395400,0.09557283,2616.5,2615.7,0.32887446]
[1724767395606,0.09557283,2616.5,2615.8,0.07644807]
[1724767396018,0.09556004,2616.6,2615.9,2.4478]
[1724767396223,5.26518262,2617.2,2616.0,0.32886999]
[1724767396512,3.82024,2617.7,2616.0,0.32886999]
[1724767396513,5.26518262,2617.5,2616.2,2.3266]
[1724767396713,5.26518262,2617.5,2616.4,2.3266]
[1724767396899,5.26518262,2617.2,2616.5,0.07642318]
[1724767397104,5.26518262,2617.2,2616.5,0.86256561]
[1724767397105,0.09553489,2617.1,2616.5,0.86256561]
[1724767398197,5.26518262,2616.9,2616.4,2.3266]
[1724767398439,0.09554845,2616.8,2616.1,2.4518]
[1724767398646,0.09554845,2616.8,2616.2,0.24518]
[1724767399244,0.09554845,2616.8,2616.1,2.4518]
[1724767399245,5.26518262,2616.6,2616.1,2.4518]
[1724767399447,0.09555609,2616.5,2616.1,2.4518]
[1724767399659,5.26518262,2616.9,2616.1,2.4518]
[1724767399805,0.0955473,2616.8,2616.1,2.4518]
[1724767400147,5.26518262,2616.6,2616.1,2.4518]
[1724767400308,0.09555428,2616.5,2616.1,2.4518]
[1724767401119,0.09555428,2616.5,2615.6,2.4939]
[1724767401458,5.26518262,2616.3,2615.6,2.4939]
[1724767401756,5.26518262,2616.0,2615.6,2.4939]
[1724767401939,0.0955741,2615.9,2615.6,2.4939]
[1724767402139,0.0955741,2615.9,2615.3,2.2686]
[1724767402364,5.26518262,2615.7,2615.3,3.27772108]
[1724767402533,5.26518262,2615.7,2615.3,2.2686]
[1724767403026,0.0955819,2615.6,2614.7,1.19633577]
[1724767403233,0.0955819,2615.6,2614.6,1.19469538]
[1724767403234,0.0955819,2615.6,2614.8,2.2686]
[1724767403669,5.36077362,2616.0,2614.9,2.53626434]
[1724767404267,5.36077362,2616.0,2614.9,3.25626359]
[1724767404570,5.26518262,2615.4,2614.9,2.4598]
[1724767404738,0.09559579,2615.3,2614.9,2.4598]
[1724767405062,5.36077843,2615.7,2615.0,0.07647664]
[1724767405224,5.36077843,2615.7,2615.0,0.3301043]
[1724767405683,5.36077399,2616.0,2615.0,0.3301043]
[1724767406026,5.36077399,2616.0,2614.9,2.4598]
[1724767406027,5.26518262,2615.7,2614.9,2.4598]
[1724767406228,0.09559137,2616.0,2614.9,2.4598]
[1724767406229,5.26518262,2615.4,2614.9,2.4598]
[1724767406465,0.09559804,2615.3,2614.9,2.4598]
[1724767406768,0.09559804,2615.3,2614.9,2.73365623]
[1724767407268,0.09559804,2615.3,2614.7,0.27876226]
[1724767407848,5.26518262,2614.8,2614.2,5.2423281]
[1724767408034,0.0956205,2614.7,2614.2,2.4507]
[1724767408360,0.0956205,2614.7,2614.2,2.69577]
[1724767408932,5.26518262,2614.8,2614.2,2.69577]
[1724767409540,5.26518262,2615.1,2614.3,0.07649629]
[1724767409752,5.26518262,2615.1,2614.3,0.35372292]
[1724767410079,0.09560977,2615.5,2614.4,2.36458781]
[1724767410245,5.36077375,2615.7,2614.5,2.2881]
[1724767410445,5.36077375,2615.7,2614.6,0.07647292]
[1724767411176,5.36077375,2615.7,2614.7,2.299]
[1724767411381,5.36077375,2615.7,2614.8,0.07647293]
[1724767411581,5.36077375,2615.7,2614.8,0.61402023]
[1724767412104,5.26518262,2615.4,2614.8,0.53754729]
[1724767412240,0.0955975,2615.3,2614.7,2.299]
[1724767412441,5.26518262,2615.1,2614.5,0.26418144]
[1724767412651,0.09560842,2615.0,2614.5,0.26418144]
[1724767413179,5.26518262,2614.8,2614.4,9.7205]
[1724767413403,0.09562015,2614.7,2614.0,9.9473]
[1724767413688,0.09562015,2614.7,2614.1,0.99473]
[1724767414702,0.09562015,2614.7,2613.8,0.06516]
[1724767414703,5.26518262,2614.5,2613.8,0.06516]
[1724767415001,5.26518262,2613.9,2613.8,0.06516]
[1724767415300,5.36085016,2613.9,2613.8,0.06516]
[1724767415503,9.18655016,2613.9,2613.8,0.06516]
[1724767415656,9.73655039,2613.9,2613.8,0.06516]
[1724767416005,3.82704,2613.0,2611.6,3.07406359]
[1724767416187,5.26518262,2612.4,2611.6,2.2776]
[1724767416494,5.26518262,2612.4,2611.2,8.62009568]
[1724767416495,5.26518262,2612.1,2611.2,9.8357003]
[1724767416696,0.09571853,2612.0,2611.3,0.86200957]
[1724767416865,5.26518262,2612.4,2611.4,0.07657477]
[1724767417064,5.36089301,2612.7,2611.4,1.14634576]
[1724767417752,0.09571039,2612.7,2611.5,2.3813]
[1724767417953,0.09569427,2612.9,2611.6,0.42931999]
[1724767418915,0.09569427,2612.9,2611.6,3.42931999]
[1724767419259,2.3242,2613.5,2611.8,2.3813]
[1724767419462,5.26518262,2613.3,2611.9,0.78813]
[1724767419702,0.09568194,2613.2,2611.9,3.78813]
[1724767419930,0.09568194,2613.2,2612.0,0.916943]
[1724767421304,0.09568161,2613.3,2612.2,2.4748]
[1724767421609,0.09568161,2613.3,2612.3,0.07653944]
[1724767421963,0.09568161,2613.3,2612.3,3.07653944]
[1724767422165,0.0956743,2613.5,2612.4,0.85513394]
[1724767422504,0.0956743,2613.5,2612.4,8.15513394]
[1724767422505,5.26518262,2613.3,2612.4,8.15513394]
[1724767422708,0.09568789,2613.2,2612.5,3.0]
[1724767423009,5.26518262,2613.3,2612.5,4.4920637]
[1724767423221,0.09568789,2613.5,2612.5,4.4920637]
[1724767423507,5.26518262,2612.8,2612.4,7.3]
[1724767423707,2.50057321,2613.2,2612.2,2.4748]
[1724767423708,0.09569231,2612.7,2612.2,2.4748]
[1724767424006,0.09569232,2613.0,2612.3,0.97748]
[1724767424319,5.26518262,2612.5,2611.8,7.3]
[1724767424464,0.09570776,2612.4,2611.8,7.3]
[1724767424667,5.26518262,2611.9,2611.2,0.52543232]
[1724767424976,5.26518262,2611.5,2611.2,0.1254003]
[1724767425178,0.09575989,2611.4,2611.2,0.1254003]
[1724767425915,5.26518262,2611.3,2611.2,0.1254003]
[1724767426268,0.55,2611.3,2611.2,0.1254003]
[1724767426888,0.09575989,2611.4,2611.2,0.1254003]
[1724767427303,3.92511989,2611.4,2611.2,0.1254003]
[1724767427521,0.09575989,2611.4,2611.2,0.1254003]
[1724767428932,9.27155449,2611.9,2611.2,0.1254003]
[1724767428933,0.09575309,2611.5,2611.2,0.1254003]
[1724767429209,0.0957431,2611.8,2611.2,0.1254003]
[1724767430551,2.3835,2612.1,2611.2,0.1254003]
[1724767430552,0.09573143,2612.0,2611.2,0.1254003]
[1724767431410,5.44283449,2611.9,2611.2,0.1254003]
[1724767431613,0.09574317,2611.8,2611.2,0.1254003]
[1724767432339,0.09574317,2611.8,2611.2,0.0254003]
[1724767432567,0.09573436,2611.7,2611.2,0.0254003]
[1724767433039,2.268,2611.4,2611.2,0.0254003]
[1724767433247,0.09576518,2611.3,2611.2,0.0254003]
[1724767438066,3.92527518,2611.3,2611.2,0.0254003]
[1724767438262,4.47527518,2611.3,2611.2,0.0254003]
[1724767438424,0.64576518,2611.3,2611.2,0.0254003]
[1724767439925,0.09576518,2611.3,2611.2,0.0254003]
[1724767442755,4.47527518,2611.3,2611.2,0.0254003]
[1724767442956,0.09576518,2611.3,2611.2,0.0254003]
[1724767444864,3.92527518,2611.3,2611.2,0.0254003]
[1724767445239,4.47527518,2611.3,2611.2,0.0254003]
[1724767445451,6.73997518,2611.3,2611.2,0.0254003]
[1724767445730,0.64576518,2611.3,2611.2,0.0254003]
[1724767445934,0.09576518,2611.3,2611.2,0.0254003]
[1724767446233,3.92527518,2611.3,2611.2,0.0254003]
[1724767446526,0.64576518,2611.3,2611.2,0.0254003]
[1724767446725,4.47527518,2611.3,2611.2,0.0254003]